fUST/lending_fUST_20250921
["ID","MTS","AMOUNT","RATE_DAILY","PERIOD"]
[386621469,1758438640387,-480.0,0.00019398,2]
[386621470,1758438640397,-618.62352367,0.00019398,2]
[386621471,1758438640407,-482.99096532,0.00019398,2]
[386621472,1758438640416,-483.16016198,0.00019398,2]
[386621473,1758438640426,-481.17464753,0.00019398,2]
[386621474,1758438640436,-482.12952181,0.00019398,2]
[386621475,1758438640445,-105.00775898,0.00019398,2]
[386621476,1758438640638,-143.7650928,0.00019398,2]
[386621482,1758438654805,-293.74729854,0.000185,2]
[386621623,1758438664574,-43.74564199,0.000185,2]
[386621625,1758438669991,-213.33622356,0.00018498,2]
[386621626,1758438671429,-83.06389244,0.00018498,2]
[386621627,1758438677502,277.65357206,0.000188,2]
[386621628,1758438738547,-300.0,0.00019301,2]
[386621629,1758438738579,-172.35617471,0.00019301,2]
[386621630,1758438738611,-933.0,0.00019301,2]
[386621631,1758438738644,-480.0,0.00019302,2]
[386621632,1758438738679,-1038.87,0.00019302,2]
[386621633,1758438738711,-480.0,0.00019302,2]
[386621634,1758438738878,-2913.90407852,0.00019302,2]
[386621635,1758438748461,-4642.89592148,0.00019302,2]
[386621636,1758438748495,-214.21815704,0.00019381,2]
[386621637,1758438748720,-285.78184296,0.00019381,2]
[386621638,1758438748796,-500.0,0.00019381,2]
[386621639,1758438748828,-382.28830886,0.00019381,2]
[386621640,1758438748860,-536.30969786,0.00019381,2]
[386621641,1758438748896,-500.0,0.00019381,2]
[386621642,1758438748930,-216.71039035,0.00019381,2]
[386621643,1758438748967,-500.0,0.00019381,2]
[386621644,1758438749003,-500.0,0.00019381,2]
[386621645,1758438749041,-466.64130323,0.00019381,2]
[386621646,1758438749081,-500.0,0.00019381,2]
[386621647,1758438749121,-169.8302742,0.00019385,2]
[386621648,1758438749157,-480.0,0.00019386,2]
[386621649,1758438749190,-16.450051,0.00019386,2]
[386621650,1758438749416,-463.549949,0.00019386,2]
[386621651,1758438756817,-480.0,0.00019302,2]
[386621652,1758438756848,-480.0,0.00019386,2]
[386621653,1758438756880,-480.0,0.00019386,2]
[386621654,1758438756911,-480.0,0.00019386,2]
[386621655,1758438756941,-480.0,0.00019386,2]
[386621656,1758438756972,-480.0,0.00019386,2]
[386621657,1758438757002,-480.0,0.00019386,2]
[386621658,1758438757033,-480.0,0.00019386,2]
[386621659,1758438757065,-767.64,0.00019387,2]
[386621660,1758438757096,-304.73,0.00019387,2]
[386621661,1758438757206,-175.27,0.00019387,2]
[386621662,1758438757240,-480.0,0.00019387,2]
[386621663,1758438757272,-3309.49,0.00019387,2]
[386621664,1758438757307,-694.79,0.00019387,2]
[386621665,1758438757340,-200.91,0.00019387,2]
[386621666,1758438757545,-279.09,0.00019387,2]
[386621667,1758438757554,-200.91,0.00019387,2]
[386621668,1758438768474,-995.59,0.00019302,2]
[386621669,1758438768506,-480.0,0.00019386,2]
[386621670,1758438768542,-329.62681147,0.00019386,2]
[386621671,1758438768574,-279.09,0.00019387,2]
[386621672,1758438768607,-480.0,0.00019387,2]
[386621673,1758438768640,-480.0,0.00019387,2]
[386621674,1758438768674,-480.0,0.00019395,2]
[386621675,1758438768710,-480.0,0.00019395,2]
[386621676,1758438768748,-480.0,0.00019395,2]
[386621677,1758438768783,-480.0,0.00019395,2]
[386621678,1758438768981,-502.81,0.00019395,2]
[386621679,1758438769014,-480.0,0.00019395,2]
[386621680,1758438769048,-617.56203235,0.00019395,2]
[386621681,1758438769083,-635.66,0.00019395,2]
[386621682,1758438769122,-480.0,0.00019395,2]
[386621683,1758438769157,-453.78351468,0.00019395,2]
[386621684,1758438769191,-198.72013466,0.00019395,2]
[386621685,1758438769224,-321.50602336,0.00019396,2]
[386621686,1758438769260,-995.23,0.00019396,2]
[386621687,1758438769295,-149.4665899,0.00019396,2]
[386621688,1758438769404,-330.5334101,0.00019396,2]
[386621689,1758438769438,-480.0,0.00019396,2]
[386621690,1758438769471,-480.0,0.00019396,2]
[386621691,1758438769504,-480.0,0.00019396,2]
[386621692,1758438769535,-480.0,0.00019396,2]
[386621693,1758438769566,-480.0,0.00019396,2]
[386621694,1758438769598,-499.14609969,0.00019396,2]
[386621695,1758438769731,-495.95697976,0.00019396,2]
[386621696,1758438769763,-480.0,0.00019396,2]
[386621697,1758438769796,-480.0,0.00019396,2]
[386621698,1758438769828,-142.72258607,0.00019396,2]
[386621699,1758438770393,-294.31028054,0.00019396,2]
[386621700,1758438770410,-48.98156822,0.00019396,2]
[386621701,1758438770420,-300.26008268,0.00019396,2]
[386621702,1758438770429,-136.77278393,0.00019396,2]
[386621703,1758438778527,-3267.69,0.00019379,2]
[386621704,1758438778559,-486.18422419,0.00019386,2]
[386621705,1758438778591,-608.39543614,0.00019386,2]
[386621706,1758438778623,-500.0,0.00019386,2]
[386621707,1758438778730,-500.0,0.00019386,2]
[386621708,1758438778761,-500.0,0.00019386,2]
[386621709,1758438778792,-391.60456386,0.00019386,2]
[386621710,1758438778824,-247.87638139,0.00019386,2]
[386621711,1758438778857,-500.0,0.00019386,2]
[386621712,1758438778891,-500.0,0.00019386,2]
[386621713,1758438778922,-500.0,0.00019386,2]
[386621714,1758438778955,-500.0,0.00019386,2]
[386621715,1758438778987,-437.32974136,0.00019386,2]
[386621716,1758438779020,-383.81482283,0.00019386,2]
[386621717,1758438779054,-500.0,0.00019386,2]
[386621718,1758438779344,-500.0,0.00019386,2]
[386621719,1758438779382,-500.0,0.00019386,2]
[386621720,1758438779412,-230.77313368,0.00019386,2]
[386621721,1758438779445,-500.0,0.00019386,2]
[386621722,1758438779478,-184.32189957,0.00019386,2]
[386621723,1758438779508,-500.0,0.00019386,2]
[386621724,1758438779540,-500.0,0.00019386,2]
[386621725,1758438779571,-448.83555965,0.00019386,2]
[386621726,1758438779603,-480.0,0.00019387,2]
[386621727,1758438779635,-345.48521757,0.00019396,2]
[386621728,1758438779667,-453.31,0.00019396,2]
[386621729,1758438779698,-304.49251116,0.00019396,2]
[386621730,1758438780238,-49.7371493,0.00019396,2]
[386621731,1758438780255,-304.49251116,0.00019396,2]
[386621732,1758438780273,-105.57335674,0.00019396,2]
[386621733,1758438788518,-480.0,0.00019386,2]
[386621734,1758438788562,-500.0,0.00019386,2]
[386621735,1758438788604,-500.0,0.00019386,2]
[386621736,1758438788646,-401.06192227,0.00019386,2]
[386621737,1758438788685,-480.0,0.00019387,2]
[386621738,1758438788727,-1292.99,0.00019395,2]
[386621739,1758438788765,-20.1969828,0.00019396,2]
[386621740,1758438788804,-480.0,0.00019396,2]
[386621741,1758438788839,-480.0,0.00019396,2]
[386621742,1758438788872,-287.82,0.00019396,2]
[386621743,1758438789149,-300.0,0.00019396,2]
[386621744,1758438789181,-480.0,0.00019397,2]
[386621745,1758438789213,-480.0,0.00019397,2]
[386621746,1758438789246,-480.0,0.00019397,2]
[386621747,1758438789279,-480.0,0.00019397,2]
[386621748,1758438789312,-480.0,0.00019397,2]
[386621749,1758438789344,-253.38063824,0.00019397,2]
[386621750,1758438789376,-483.3971907,0.00019397,2]
[386621751,1758438789408,-237.70108069,0.00019398,2]
[386621752,1758438789439,-480.0,0.00019398,2]
[386621753,1758438789471,-481.70893964,0.00019398,2]
[386621754,1758438789502,-267.8129078,0.00019398,2]
[386621755,1758438789534,-0.91848586,0.00019398,2]
[386621756,1758438790048,-156.66264364,0.00019398,2]
[386621757,1758438790067,-33.5088705,0.00019398,2]
[386621758,1758438790077,-157.5811295,0.00019398,2]
[386621759,1758438798514,-480.0,0.00019387,2]
[386621760,1758438798547,-480.0,0.00019395,2]
[386621761,1758438798581,-480.0,0.00019396,2]
[386621762,1758438798613,-480.0,0.00019396,2]
[386621763,1758438798646,-480.0,0.00019396,2]
[386621764,1758438798681,-480.0,0.00019396,2]
[386621765,1758438798713,-480.0,0.00019397,2]
[386621766,1758438798746,-325.39495991,0.00019398,2]
[386621767,1758438798778,-480.723002,0.00019398,2]
[386621768,1758438798810,-480.0,0.00019398,2]
[386621769,1758438798842,-225.49382999,0.00019398,2]
[386621770,1758438798945,-256.7864162,0.00019398,2]
[386621771,1758438798978,-481.35691474,0.00019398,2]
[386621772,1758438799011,-483.15834455,0.00019398,2]
[386621773,1758438799044,-480.0,0.00019398,2]
[386621774,1758438799076,-482.59341323,0.00019398,2]
[386621775,1758438799111,-482.87704865,0.00019398,2]
[386621776,1758438799146,-266.74959258,0.00019398,2]
[386621777,1758438799180,-488.4654456,0.00019398,2]
[386621778,1758438799213,-480.0,0.00019398,2]
[386621779,1758438799245,-485.56656105,0.00019398,2]
[386621780,1758438799278,-480.0,0.00019398,2]
[386621781,1758438799775,-261.46489466,0.00019398,2]
[386621782,1758438799905,-218.53510534,0.00019398,2]
[386621783,1758438799914,-46.36742146,0.00019398,2]
[386621784,1758438808546,-480.0,0.00019386,2]
[386621785,1758438808579,-480.0,0.00019386,2]
[386621786,1758438808613,-570.73,0.00019395,2]
[386621787,1758438808647,-435.49452355,0.00019398,2]
[386621788,1758438808679,-480.0,0.00019398,2]
[386621789,1758438808711,-252.34182297,0.00019398,2]
[386621790,1758438808742,-549.19912021,0.00019398,2]
[386621791,1758438808774,-480.0,0.00019398,2]
[386621792,1758438808806,-497.26502463,0.00019398,2]
[386621793,1758438808837,-480.0,0.00019398,2]
[386621794,1758438808870,-104.41749319,0.00019398,2]
[386621795,1758438809120,-381.1140309,0.00019398,2]
[386621796,1758438823850,-10000.01,0.00019287,2]
[386621797,1758438824103,-10000.01,0.00019287,2]
[386621798,1758438824255,-10000.01,0.00019287,2]
[386621799,1758438833633,-3126.61849151,0.00019287,2]
[386621800,1758438833670,-500.0,0.00019386,2]
[386621801,1758438833817,-568.24128748,0.00019386,2]
[386621802,1758438833850,-500.0,0.00019386,2]
[386621803,1758438833884,-110.29044202,0.00019386,2]
[386621804,1758438833991,-389.70955798,0.00019386,2]
[386621805,1758438863821,-480.0,0.00019302,2]
[386621806,1758438863855,-480.0,0.00019302,2]
[386621807,1758438863888,-838.08,0.00019302,2]
[386621808,1758438863949,-6403.85,0.00019302,2]
[386621809,1758438969271,-480.0,0.00019302,2]
[386621810,1758438969305,-480.0,0.00019302,2]
[386621811,1758438969339,-480.0,0.00019302,2]
[386621812,1758438969375,-179.83,0.00019302,2]
[386621813,1758438969452,-6760.35,0.00019302,2]
[386621814,1758438999137,-160.53899387,0.00019285,2]
[386621815,1758438999171,-734.86765136,0.00019301,2]
[386621816,1758438999206,-480.0,0.00019302,2]
[386621817,1758438999242,-1639.0929364,0.00019321,2]
[386621818,1758438999276,-160.0,0.00019321,2]
[386621819,1758438999308,-160.53899385,0.00019346,2]
[386621820,1758438999341,-300.0,0.00019368,2]
[386621821,1758438999488,-2729.93284904,0.00019369,2]
[386621822,1758438999526,-496.16715096,0.00019369,2]
[386621823,1758438999675,-1200.0,0.00019383,2]
[386621824,1758438999708,-300.0,0.00019384,2]
[386621825,1758438999740,-300.0,0.00019384,2]
[386621826,1758438999772,-300.0,0.00019384,2]
[386621827,1758439007629,480.0,0.00019302,2]
[386621828,1758439008945,-500.0,0.00019384,2]
[386621829,1758439008980,-500.0,0.00019384,2]
[386621830,1758439009021,-500.0,0.00019384,2]
[386621831,1758439009055,-500.0,0.00019384,2]
[386621832,1758439009091,-500.0,0.00019384,2]
[386621833,1758439009127,-500.0,0.00019384,2]
[386621834,1758439009163,-500.0,0.00019384,2]
[386621835,1758439009200,-500.0,0.00019384,2]
[386621836,1758439009235,-500.0,0.00019384,2]
[386621837,1758439009271,-500.0,0.00019384,2]
[386621838,1758439009414,-500.0,0.00019384,2]
[386621839,1758439009450,-500.0,0.00019384,2]
[386621840,1758439009485,-500.0,0.00019384,2]
[386621841,1758439009518,-500.0,0.00019384,2]
[386621842,1758439009553,-500.0,0.00019384,2]
[386621843,1758439009589,-500.0,0.00019384,2]
[386621844,1758439009626,-500.0,0.00019384,2]
[386621845,1758439009659,-500.0,0.00019384,2]
[386621846,1758439009692,-500.0,0.00019384,2]
[386621847,1758439009726,-500.0,0.00019384,2]
[386621848,1758439009851,-401.23262745,0.00019384,2]
[386621849,1758439009885,-286.25869964,0.00019384,2]
[386621850,1758439009920,-500.0,0.00019384,2]
[386621851,1758439010066,-500.0,0.00019384,2]
[386621852,1758439010102,-500.0,0.00019384,2]
[386621853,1758439010138,-500.0,0.00019384,2]
[386621854,1758439010173,-500.0,0.00019384,2]
[386621855,1758439010206,-500.0,0.00019384,2]
[386621856,1758439010242,-500.0,0.00019384,2]
[386621857,1758439010275,-286.30447768,0.00019384,2]
[386621858,1758439010309,-500.0,0.00019384,2]
[386621859,1758439010419,-500.0,0.00019384,2]
[386621860,1758439010452,-500.0,0.00019384,2]
[386621861,1758439010484,-500.0,0.00019384,2]
[386621862,1758439010518,-500.0,0.00019384,2]
[386621863,1758439010554,-500.0,0.00019384,2]
[386621864,1758439010589,-500.0,0.00019384,2]
[386621865,1758439010622,-500.0,0.00019384,2]
[386621866,1758439010657,-500.0,0.00019384,2]
[386621867,1758439010690,-500.0,0.00019384,2]
[386621868,1758439010724,-500.0,0.00019384,2]
[386621869,1758439010868,-500.0,0.00019384,2]
[386621870,1758439010903,-500.0,0.00019384,2]
[386621871,1758439010937,-500.0,0.00019384,2]
[386621872,1758439010971,-500.0,0.00019384,2]
[386621873,1758439011007,-500.0,0.00019384,2]
[386621874,1758439011042,-500.0,0.00019384,2]
[386621875,1758439011077,-500.0,0.00019384,2]
[386621876,1758439011112,-500.0,0.00019384,2]
[386621877,1758439011148,-500.0,0.00019384,2]
[386621878,1758439011186,-500.0,0.00019384,2]
[386621879,1758439011366,-500.0,0.00019384,2]
[386621880,1758439011411,-500.0,0.00019384,2]
[386621881,1758439011455,-500.0,0.00019384,2]
[386621882,1758439011497,-500.0,0.00019384,2]
[386621883,1758439011541,-500.0,0.00019384,2]
[386621884,1758439011583,-500.0,0.00019384,2]
[386621885,1758439011622,-500.0,0.00019384,2]
[386621886,1758439011664,-500.0,0.00019384,2]
[386621887,1758439011706,-500.0,0.00019384,2]
[386621888,1758439011750,-500.0,0.00019384,2]
[386621889,1758439011902,-500.0,0.00019384,2]
[386621890,1758439011941,-500.0,0.00019384,2]
[386621891,1758439011987,-500.0,0.00019384,2]
[386621892,1758439012028,-500.0,0.00019384,2]
[386621893,1758439012068,-500.0,0.00019384,2]
[386621894,1758439012109,-500.0,0.00019384,2]
[386621895,1758439012150,-500.0,0.00019384,2]
[386621896,1758439012196,-500.0,0.00019384,2]
[386621897,1758439012236,-500.0,0.00019384,2]
[386621898,1758439012279,-500.0,0.00019384,2]
[386621899,1758439012324,3185.04,0.00019384,2]
[386621900,1758439012511,-500.0,0.00019384,2]
[386621901,1758439012683,-500.0,0.00019384,2]
[386621902,1758439012719,-204.4615682,0.00019384,2]
[386621903,1758439012757,-500.0,0.00019384,2]
[386621904,1758439012793,-500.0,0.00019384,2]
[386621905,1758439012828,-500.0,0.00019384,2]
[386621906,1758439012865,-500.0,0.00019384,2]
[386621907,1758439012901,-500.0,0.00019384,2]
[386621908,1758439012937,-500.0,0.00019384,2]
[386621909,1758439012972,-500.0,0.00019384,2]
[386621910,1758439013007,-91.0868636,0.00019384,2]
[386621911,1758439013190,-408.9131364,0.00019384,2]
[386621912,1758439013226,-500.0,0.00019384,2]
[386621913,1758439013266,-500.0,0.00019384,2]
[386621914,1758439013301,-500.0,0.00019384,2]
[386621915,1758439013337,-500.0,0.00019384,2]
[386621916,1758439013374,-500.0,0.00019384,2]
[386621917,1758439013411,-500.0,0.00019384,2]
[386621918,1758439013444,-480.0,0.00019386,2]
[386621919,1758439013478,-480.0,0.00019386,2]
[386621920,1758439013511,-480.0,0.00019386,2]
[386621921,1758439019012,-480.0,0.00019386,2]
[386621922,1758439019049,-735.66,0.00019386,2]
[386621923,1758439019082,-480.0,0.00019386,2]
[386621924,1758439019115,-480.0,0.00019386,2]
[386621925,1758439019149,-480.0,0.00019386,2]
[386621926,1758439019186,-480.0,0.00019386,2]
[386621927,1758439019221,-691.04,0.00019386,2]
[386621928,1758439019257,-1012.27,0.00019386,2]
[386621929,1758439019410,-322.07,0.00019386,2]
[386621930,1758439019444,-480.0,0.00019386,2]
[386621931,1758439019477,-488.84073829,0.00019386,2]
[386621932,1758439019510,-480.0,0.00019386,2]
[386621933,1758439019543,-480.0,0.00019386,2]
[386621934,1758439019575,-480.0,0.00019386,2]
[386621935,1758439019608,-480.0,0.00019386,2]
[386621936,1758439019641,-480.0,0.00019386,2]
[386621937,1758439019675,-480.0,0.00019386,2]
[386621938,1758439019709,-480.0,0.00019387,2]
[386621939,1758439019742,-218.18852342,0.00019387,2]
[386621940,1758439019879,-261.81147658,0.00019387,2]
[386621941,1758439019913,-480.0,0.00019387,2]
[386621942,1758439019946,-480.0,0.00019387,2]
[386621943,1758439019976,-480.0,0.00019387,2]
[386621944,1758439020113,-480.0,0.00019387,2]
[386621945,1758439020147,-480.0,0.00019387,2]
[386621946,1758439020183,-480.0,0.00019387,2]
[386621947,1758439020216,-504.87393318,0.00019387,2]
[386621948,1758439020252,-634.21,0.00019387,2]
[386621949,1758439020290,-438.19918048,0.00019395,2]
[386621950,1758439020358,-316.5354621,0.00019386,2]
[386621951,1758439020393,-561.82081952,0.00019395,2]
[386621952,1758439020427,-480.0,0.00019395,2]
[386621953,1758439020460,-480.0,0.00019395,2]
[386621954,1758439020494,-480.0,0.00019395,2]
[386621955,1758439020527,-537.08091969,0.00019396,2]
[386621956,1758439020560,-271.62562813,0.00019396,2]
[386621957,1758439020592,-230.23118718,0.00019396,2]
[386621958,1758439020624,-486.10266892,0.00019396,2]
[386621959,1758439020656,-493.04694364,0.00019396,2]
[386621960,1758439020688,-482.84270222,0.00019396,2]
[386621961,1758439020886,-369.361706,0.00019396,2]
[386621962,1758439020918,-483.56208545,0.00019396,2]
[386621963,1758439020950,-480.0,0.00019396,2]
[386621964,1758439020983,-480.0,0.00019396,2]
[386621965,1758439021015,-485.69747072,0.00019396,2]
[386621966,1758439021049,-480.0,0.00019396,2]
[386621967,1758439021084,-480.0,0.00019396,2]
[386621968,1758439021116,-480.0,0.00019396,2]
[386621969,1758439021147,-568.47,0.00019396,2]
[386621970,1758439021184,-589.33975845,0.00019396,2]
[386621971,1758439021394,-528.32595358,0.00019396,2]
[386621972,1758439021428,-500.0,0.00019396,2]
[386621973,1758439021461,-480.0,0.00019397,2]
[386621974,1758439021493,-480.0,0.00019397,2]
[386621975,1758439021528,-2431.66,0.00019397,2]
[386621976,1758439021560,-491.31604623,0.00019397,2]
[386621977,1758439021703,-480.0,0.00019397,2]
[386621978,1758439021736,-480.0,0.00019397,2]
[386621979,1758439021769,-480.0,0.00019397,2]
[386621980,1758439021802,-480.0,0.00019397,2]
[386621981,1758439021834,-480.0,0.00019397,2]
[386621982,1758439021866,-515.29804509,0.00019397,2]
[386621983,1758439021898,-480.0,0.00019397,2]
[386621984,1758439021932,-487.2230054,0.00019397,2]
[386621985,1758439021965,-194.7114091,0.00019397,2]
[386621986,1758439021997,-480.0,0.00019397,2]
[386621987,1758439022028,-399.49348141,0.00019397,2]
[386621988,1758439022172,-86.558118,0.00019397,2]
[386621989,1758439022204,-484.81048437,0.00019397,2]
[386621990,1758439022236,-480.0,0.00019397,2]
[386621991,1758439022270,-448.88432873,0.00019397,2]
[386621992,1758439022302,-489.62222375,0.00019397,2]
[386621993,1758439022334,-484.49099453,0.00019397,2]
[386621994,1758439022366,-480.0,0.00019397,2]
[386621995,1758439022397,-441.52887514,0.00019397,2]
[386621996,1758439022430,-480.0,0.00019397,2]
[386621997,1758439022462,-954.1,0.00019397,2]
[386621998,1758439022496,-3.33506396,0.00019397,2]
[386621999,1758439022658,-333.34982304,0.00019397,2]
[386622000,1758439022690,-480.0,0.00019398,2]
[386622001,1758439022723,-482.70692241,0.00019398,2]
[386622002,1758439022754,-211.81346575,0.00019398,2]
[386622003,1758439022889,-480.0,0.00019398,2]
[386622004,1758439022922,-480.0,0.00019398,2]
[386622005,1758439022955,-480.0,0.00019398,2]
[386622006,1758439022987,-445.12068024,0.00019398,2]
[386622007,1758439023020,-481.15543757,0.00019398,2]
[386622008,1758439023054,-480.0,0.00019398,2]
[386622009,1758439023087,-480.0,0.00019398,2]
[386622010,1758439024977,-7.66439245,0.00019387,2]
[386622011,1758439029052,-500.0,0.00019384,2]
[386622012,1758439029192,-500.0,0.00019384,2]
[386622013,1758439029228,-500.0,0.00019384,2]
[386622014,1758439029266,-499.27387147,0.00019384,2]
[386622015,1758439029301,-472.33560755,0.00019387,2]
[386622016,1758439029336,-300.0,0.00019396,2]
[386622017,1758439029369,-480.0,0.00019396,2]
[386622018,1758439029402,-480.0,0.00019396,2]
[386622019,1758439029435,-480.0,0.00019397,2]
[386622020,1758439029469,-480.0,0.00019397,2]
[386622021,1758439029503,-136.79104196,0.00019398,2]
[386622022,1758439029560,-343.20895804,0.00019398,2]
[386622023,1758439029593,-597.66898272,0.00019398,2]
[386622024,1758439029626,-480.0,0.00019398,2]
[386622025,1758439029658,-480.0,0.00019398,2]
[386622026,1758439029690,-151.61503754,0.00019398,2]
[386622027,1758439029722,-500.0,0.00019398,2]
[386622028,1758439029755,-480.0,0.00019399,2]
[386622029,1758439029788,-480.0,0.00019399,2]
[386622030,1758439030183,-343.20895804,0.00019401,2]
[386622031,1758439030201,-2975.0240434,0.00019401,2]
[386622032,1758439031867,-10000.01,0.00019401,2]
[386622033,1758439032066,-349.38240688,0.00019386,2]
[386622034,1758439032107,-9301.24518624,0.00019401,2]
[386622035,1758439074782,-200.80108424,0.00018397,2]
[386622036,1758439078475,-151.43754946,0.00018397,2]
[386622037,1758439096346,-480.0,0.00019302,2]
[386622038,1758439096379,-480.0,0.00019302,2]
[386622039,1758439096416,-3144.51,0.00019378,2]
[386622040,1758439096450,-300.0,0.00019383,2]
[386622041,1758439096481,-480.0,0.00019384,2]
[386622042,1758439096592,-230.99,0.00019384,2]
[386622043,1758439097016,-269.01,0.00019384,2]
[386622044,1758439097052,-165.37284407,0.00019384,2]
[386622045,1758439097090,-500.0,0.00019384,2]
[386622046,1758439097125,-500.0,0.00019384,2]
[386622047,1758439097160,-500.0,0.00019384,2]
[386622048,1758439097198,-553.64665223,0.00019384,2]
[386622049,1758439097232,-500.0,0.00019384,2]
[386622050,1758439097266,-500.0,0.00019384,2]
[386622051,1758439097299,-575.80715314,0.00019384,2]
[386622052,1758439097334,-500.0,0.00019384,2]
[386622053,1758439097371,-372.33670112,0.00019384,2]
[386622054,1758439097586,-127.66329888,0.00019384,2]
[386622055,1758439097622,-500.0,0.00019384,2]
[386622056,1758439097656,-500.0,0.00019384,2]
[386622057,1758439097692,-500.0,0.00019384,2]
[386622058,1758439097727,-500.0,0.00019384,2]
[386622059,1758439097761,-500.0,0.00019384,2]
[386622060,1758439097900,-157.55496693,0.00019384,2]
[386622061,1758439097936,-500.0,0.00019384,2]
[386622062,1758439097972,-500.0,0.00019384,2]
[386622063,1758439098007,-500.0,0.00019384,2]
[386622064,1758439098042,-500.0,0.00019384,2]
[386622065,1758439098173,-480.0,0.00019386,2]
[386622066,1758439098206,-480.0,0.00019386,2]
[386622067,1758439098241,-421.53697244,0.00019386,2]
[386622068,1758439098275,-493.97447808,0.00019386,2]
[386622069,1758439098310,-480.0,0.00019386,2]
[386622070,1758439098345,-553.95,0.00019386,2]
[386622071,1758439098380,-480.0,0.00019386,2]
[386622072,1758439098416,-480.0,0.00019386,2]
[386622073,1758439098450,-480.0,0.00019386,2]
[386622074,1758439098486,-480.0,0.00019386,2]
[386622075,1758439098568,-487.05542327,0.00019386,2]
[386622076,1758439098601,-485.38448487,0.00019386,2]
[386622077,1758439098637,-1325.97,0.00019386,2]
[386622078,1758439098671,-1323.82,0.00019387,2]
[386622079,1758439098706,-591.77,0.00019387,2]
[386622080,1758439098739,-480.0,0.00019395,2]
[386622081,1758439098775,-132.01018372,0.00019395,2]
[386622082,1758439098920,-347.98981628,0.00019395,2]
[386622083,1758439098957,-480.0,0.00019396,2]
[386622084,1758439098991,-449.47241302,0.00019396,2]
[386622085,1758439099025,-490.35853666,0.00019396,2]
[386622086,1758439099060,-304.16080182,0.00019396,2]
[386622087,1758439099095,-172.30459445,0.00019396,2]
[386622088,1758439099130,-505.18530588,0.00019396,2]
[386622089,1758439099164,-551.99183469,0.00019396,2]
[386622090,1758439099204,-480.0,0.00019397,2]
[386622091,1758439099237,-492.67807323,0.00019397,2]
[386622092,1758439099275,-480.0,0.00019397,2]
[386622093,1758439099309,-146.8001147,0.00019397,2]
[386622094,1758439100356,651.4873009,0.00018392,2]
[386622095,1758439100742,-71.99183469,0.00019302,2]
[386622096,1758439100760,-408.00816531,0.00019302,2]
[386622097,1758439100770,-71.99183469,0.00019397,2]
[386622098,1758439100796,-126.13518385,0.00019397,2]
[386622099,1758439100806,-218.79194939,0.00019397,2]
[386622100,1758439109340,-175.97980473,0.00019301,2]
[386622101,1758439109373,-502.89585119,0.00019396,2]
[386622102,1758439109405,-480.0,0.00019396,2]
[386622103,1758439109437,-480.0,0.00019396,2]
[386622104,1758439109471,-2111.68805061,0.00019397,2]
[386622105,1758439109503,-481.5207303,0.00019397,2]
[386622106,1758439109536,-480.0,0.00019397,2]
[386622107,1758439109568,-95.84112634,0.00019397,2]
[386622108,1758439109694,-480.52859937,0.00019396,2]
[386622109,1758439109726,-384.15887366,0.00019397,2]
[386622110,1758439109851,-384.15887366,0.00019401,2]
[386622111,1758439109869,-8270.63505394,0.00019401,2]
[386622112,1758439109902,-10000.01,0.00019401,2]
[386622113,1758439109920,-10000.01,0.00019401,2]
[386622114,1758439116203,-480.0,0.00019386,2]